bitfinex/quotes_ETHUSD_20220112
["timestamp","ask_amount","ask_price","bid_price","bid_amount"]
[1642020504546,0.00738951,3378.5,3378.1,1.2578438]
[1642020504977,0.00682108,3378.4,3378.1,1.2578438]
[1642020505379,0.1183,3378.7,3378.1,1.2578438]
[1642020505380,0.00625266,3378.3,3378.1,1.2578438]
[1642020505779,0.00568424,3378.2,3378.1,1.2578438]
[1642020510937,0.00568424,3378.2,3378.1,2.43829129]
[1642020512273,0.00568424,3378.2,3378.1,1.2578438]
[1642020512674,0.00568424,3378.2,3377.8,0.1184]
[1642020512874,0.1184,3378.1,3377.8,0.1184]
[1642020513076,0.00511581,3378.1,3377.8,0.1184]
[1642020513278,0.00454739,3378.0,3377.8,0.1184]
[1642020513681,0.00397897,3377.9,3377.8,0.1184]
[1642020513880,0.00397897,3377.9,3377.8,1.35933574]
[1642020514282,0.00397897,3377.9,3377.1,0.1184]
[1642020514684,3.04552347,3378.3,3377.0,0.00113684]
[1642020514685,0.00341054,3377.8,3377.0,0.00113684]
[1642020515081,0.00284212,3377.7,3376.8,0.00227369]
[1642020515281,0.00284212,3377.7,3376.9,0.1184]
[1642020515481,4.21729176,3378.0,3377.1,1.15165169]
[1642020515482,1.34966873,3377.3,3377.1,1.15165169]
[1642020515681,1.64966873,3377.3,3377.1,1.15165169]
[1642020515882,0.3,3377.3,3377.1,1.15165169]
[1642020516124,0.1184,3377.8,3377.1,1.15165169]
[1642020516527,0.00284212,3377.7,3377.1,1.15165169]
[1642020516923,1.41413682,3377.5,3377.1,1.15165169]
[1642020517331,0.00113685,3377.4,3377.1,1.15165169]
[1642020519530,0.00113685,3377.4,3377.0,0.00113684]
[1642020519985,0.00113685,3377.4,3376.9,0.00170527]
[1642020520583,0.00113685,3377.4,3377.0,0.74018]
[1642020522285,0.00113685,3377.4,3377.1,1.55656454]
[1642020522487,0.00113685,3377.4,3377.2,0.74014]
[1642020523087,0.00113685,3377.4,3377.1,1.55656454]
[1642020524028,0.00113685,3377.4,3377.1,2.29672454]
[1642020524431,0.00113685,3377.4,3377.2,0.1184]
[1642020524631,0.00113685,3377.4,3377.1,2.29672454]
[1642020524830,0.00113685,3377.4,3377.2,0.1184]
[1642020526033,0.00113685,3377.4,3377.1,2.29672454]
[1642020527780,0.00113685,3377.4,3377.2,0.00324796]
[1642020527979,0.00113685,3377.4,3377.1,2.29672454]
[1642020528583,0.00113685,3377.4,3377.2,0.02411779]
[1642020528881,0.00113685,3377.4,3377.3,6.82999]
[1642020529080,0.00113685,3377.4,3377.3,7.94839]
[1642020530685,0.00113685,3377.4,3377.3,2.59839]
[1642020531130,0.00113685,3377.4,3377.3,0.1184]
[1642020531525,0.00113685,3377.4,3377.2,0.73999]
[1642020533230,0.00113685,3377.4,3377.2,1.73999]
[1642020534331,0.00113685,3377.4,3377.3,7.93540682]
[1642020534530,0.00113685,3377.4,3377.3,11.25982877]
[1642020534790,0.00113685,3377.4,3377.3,8.93540682]
[1642020535190,0.00113685,3377.4,3377.3,9.05380682]
[1642020535495,0.00113685,3377.4,3377.3,9.79375682]
[1642020536092,0.00113685,3377.4,3377.3,12.94882156]
[1642020536491,0.00113685,3377.4,3377.3,6.29882156]
[1642020536694,0.00113685,3377.4,3377.3,3.14375682]
[1642020537897,0.00113685,3377.4,3377.3,1.85835]
[1642020538102,0.00113685,3377.4,3377.3,0.85835]
[1642020538297,0.00113685,3377.4,3377.3,1.85835]
[1642020538530,0.00113685,3377.4,3377.3,0.85835]
[1642020538924,0.00113685,3377.4,3377.3,6.05835]
[1642020539128,0.00113685,3377.4,3377.3,8.3205783]
[1642020539327,0.00113685,3377.4,3377.3,1.73995]
[1642020539525,0.00113685,3377.4,3377.3,0.73995]
[1642020539726,0.00113685,3377.4,3377.3,1.73995]
[1642020540130,0.00113685,3377.4,3377.3,0.73995]
[1642020540932,0.00113685,3377.4,3377.3,5.08995]
[1642020541132,0.00113685,3377.4,3377.3,7.33471689]
[1642020541735,0.00113685,3377.4,3377.3,2.98471689]
[1642020541934,0.00113685,3377.4,3377.3,3.10311689]
[1642020542371,0.00113685,3377.4,3377.3,2.10311689]
[1642020542777,0.00113685,3377.4,3377.3,0.85835]
[1642020544479,1.27050876,3377.4,3377.3,0.73995]
[1642020546936,3.8106321,3377.4,3377.3,0.73995]
[1642020547335,3.80949525,3377.4,3377.3,0.73995]
[1642020548035,2.11966537,3378.2,3377.4,6.65]
[1642020548240,3.29837811,3378.9,3377.4,6.65]
[1642020548241,4.45707811,3378.9,3377.6,0.01213194]
[1642020548440,4.45707811,3378.9,3378.4,0.01252585]
[1642020548441,3.29837811,3378.9,3378.4,0.01252585]
[1642020548639,0.00568424,3378.8,3378.4,0.71662585]
[1642020548835,3.15406235,3378.9,3378.5,4.25]
[1642020549037,3.15406235,3378.9,3378.6,2.40222478]
[1642020549237,3.15406235,3378.9,3378.6,2.40336163]
[1642020549437,3.71061848,3379.0,3378.7,2.9145306]
[1642020549638,3.71061848,3379.1,3378.7,0.1183]
[1642020549893,3.71061848,3379.1,3378.6,2.12997495]
[1642020550093,3.71232375,3379.1,3378.6,2.12997495]
[1642020550492,4.91610371,3379.1,3378.6,1.12997495]
[1642020550893,6.01686583,3379.1,3378.6,1.12997495]
[1642020551499,6.31686583,3379.1,3378.6,0.00113685]
[1642020551695,2.60624735,3379.1,3378.8,1.47953]
[1642020552095,5.3635188,3379.1,3378.8,1.47953]
[1642020552499,5.3635188,3379.1,3378.7,0.73988]
[1642020552500,2.60624735,3379.1,3378.7,0.73988]
[1642020552700,5.33085739,3379.1,3378.7,0.73988]
[1642020553101,5.33103285,3379.1,3378.7,0.73988]
[1642020553306,5.46913157,3379.1,3378.7,0.73988]
[1642020553539,5.46913157,3379.1,3378.4,0.0022737]
[1642020553540,0.73996,3378.9,3378.4,0.0022737]
[1642020553746,0.01231204,3378.5,3378.4,0.0022737]
[1642020553942,0.1183,3378.5,3377.6,0.00682108]
[1642020554142,1.529,3378.8,3377.5,0.12578951]
[1642020554444,1.529,3378.8,3377.6,0.00682108]
[1642020554445,0.3,3378.8,3377.6,0.00682108]
[1642020554646,3.16288422,3378.8,3377.7,0.1184]
[1642020554844,0.3,3378.8,3377.7,0.1184]
[1642020555042,1.50589439,3378.6,3377.8,0.00568424]
[1642020555248,0.74,3378.5,3377.9,0.1184]
[1642020555443,0.3,3378.4,3377.9,0.1184]
[1642020555744,2.86288422,3379.0,3378.0,0.00454739]
[1642020555946,9.10446945,3379.1,3378.0,0.00454739]
[1642020556246,0.7399,3379.0,3378.0,0.00454739]
[1642020556444,0.3,3378.9,3378.0,0.00454739]
[1642020557296,1.03993,3378.9,3378.0,0.00454739]
[1642020557500,1.03993,3378.9,3378.1,1.42317749]
[1642020557703,1.03993,3378.9,3378.5,0.73989]
[1642020557704,1.49757358,3378.9,3378.5,0.73989]
[1642020557903,1.79757358,3378.9,3378.5,0.73989]
[1642020558102,1.79757358,3378.9,3378.6,0.00113685]
[1642020558702,0.3,3378.9,3378.7,0.73983]
[1642020559102,3.00305881,3379.1,3378.7,0.73983]
[1642020559505,1.79927885,3379.1,3378.7,0.73983]
[1642020560103,0.5080516,3379.0,3378.7,0.73983]
[1642020560503,1.85889711,3379.0,3378.7,0.73983]
[1642020561331,0.5080516,3378.9,3378.7,0.73983]
[1642020562737,0.8080516,3378.9,3378.7,0.73983]
[1642020563034,0.5080516,3378.9,3378.7,0.73983]
[1642020563734,1.79972115,3378.9,3378.7,0.73983]
[1642020563937,1.79972115,3378.9,3378.8,0.1183]
[1642020564138,1.59166955,3378.9,3378.7,0.73983]
[1642020564337,0.00170527,3379.1,3378.7,0.73983]
[1642020564995,0.00170527,3379.1,3378.8,0.73961]
[1642020565192,0.00170527,3379.1,3378.9,0.0683]
[1642020565393,0.00170527,3379.1,3379.0,1.98961085]
[1642020565592,0.00170527,3379.1,3379.0,3.40558389]
[1642020566094,0.00170527,3379.1,3379.0,4.40558389]
[1642020566695,0.00170527,3379.1,3379.0,4.52388389]
[1642020569639,2.24907567,3379.1,3379.0,3.27386304]
[1642020570038,2.24907567,3379.1,3379.0,3.15556304]
[1642020570241,0.00170527,3379.1,3379.0,3.15556304]
[1642020571039,3.78430723,3379.1,3379.0,1.73959]
[1642020571447,3.78430723,3379.1,3379.0,0.73959]
[1642020571640,3.78430723,3379.1,3379.0,1.73959]
[1642020571843,3.78430723,3379.1,3379.0,0.73959]
[1642020572040,3.78430723,3379.1,3379.0,1.73959]
[1642020572301,3.78430723,3379.1,3379.0,0.73959]
[1642020572490,3.78430723,3379.1,3378.6,1.47965]
[1642020572491,4.08430723,3379.1,3378.6,1.47965]
[1642020572892,0.00113684,3379.0,3378.6,1.47965]
[1642020573292,0.00113684,3379.0,3378.6,2.66528507]
[1642020573492,0.00113684,3379.0,3378.6,3.33103307]
[1642020573691,0.00113684,3379.0,3378.6,2.66528507]
[1642020574393,2.24850724,3379.0,3378.8,0.73977]
[1642020574799,2.24850724,3379.0,3378.9,2.71210565]
[1642020575096,2.24850724,3379.0,3378.9,1.47931]
[1642020575697,3.39354323,3379.0,3378.9,1.47931]
[1642020575900,1.14617283,3379.0,3378.9,1.47931]
[1642020576136,1.44617283,3379.0,3378.9,1.47931]
[1642020576541,0.30113684,3379.0,3378.9,1.47931]
[1642020576737,0.00113684,3379.0,3378.9,1.47931]
[1642020577538,1.41987054,3379.0,3378.9,1.47931]
[1642020577740,1.0136335,3379.2,3378.9,1.47931]
[1642020577939,1.0136335,3379.2,3379.0,0.73957]
[1642020578944,1.0136335,3379.2,3378.9,4.17199093]
[1642020579143,1.0136335,3379.2,3379.1,0.7396]
[1642020579549,1.01477035,3379.2,3379.1,0.7396]
[1642020582493,1.01477035,3379.2,3379.1,3.4762328]
[1642020582693,1.01477035,3379.2,3379.1,0.7396]
[1642020583293,1.01477035,3379.2,3379.1,3.46946625]
[1642020583531,1.01477035,3379.2,3379.1,4.46946625]
[1642020583731,1.01477035,3379.2,3379.1,1.7396]
[1642020583938,1.01477035,3379.2,3379.1,3.41508451]
[1642020584136,1.01477035,3379.2,3379.1,1.7396]
[1642020584339,1.49757358,3379.9,3379.2,3.1]
[1642020584539,1.79757358,3379.9,3379.6,0.6655607]
[1642020584742,1.1261,3380.0,3379.7,2.82408453]
[1642020584743,1.49757358,3380.0,3379.7,2.82408453]
[1642020585140,0.00397897,3379.9,3379.7,2.82408453]
[1642020585438,0.00341054,3379.8,3379.6,2.83498271]
[1642020585638,0.00341054,3379.8,3379.7,3.72718052]
[1642020585839,1.45170134,3380.0,3379.7,4.46670052]
[1642020586044,1.49757358,3380.4,3379.7,4.46670052]
[1642020586240,1.49757358,3380.4,3379.8,3.35]
[1642020586441,1.79757358,3380.4,3379.9,2.7972027]
[1642020586639,0.00227369,3380.3,3379.9,2.7972027]
[1642020586840,0.00227369,3380.3,3379.7,3.77852007]
[1642020587046,1.74927885,3380.4,3379.7,3.77852007]
[1642020587314,1.74927885,3380.4,3379.8,0.0022737]
[1642020587315,0.50785939,3380.2,3379.8,0.0022737]
[1642020587505,0.50785939,3380.2,3379.9,0.73937]
[1642020587701,0.50785939,3380.2,3380.1,0.73937]
[1642020588602,0.50785939,3380.4,3380.1,0.73937]
[1642020589005,0.50899623,3380.4,3380.1,1.73937]
[1642020589707,0.50899623,3380.4,3380.1,0.73937]
[1642020589912,0.50785939,3380.3,3380.1,1.73937]
[1642020590509,0.50785939,3380.3,3380.1,0.73937]
[1642020590711,0.50785939,3380.3,3380.1,1.73937]
[1642020591345,0.00113684,3380.4,3380.1,1.73937]
[1642020591545,0.00113684,3380.4,3380.1,0.73937]
[1642020591748,2.2519561,3380.2,3380.1,0.73937]
[1642020592746,0.00113684,3380.4,3380.1,0.73937]
[1642020592747,2.25309294,3380.4,3380.1,0.73937]
[1642020593449,2.2519561,3380.2,3380.1,0.73937]
[1642020595191,2.2519561,3380.2,3380.1,1.73937]
[1642020595390,2.2519561,3380.2,3380.1,0.73937]
[1642020595587,2.2519561,3380.2,3380.1,1.73937]
[1642020595789,2.5519561,3380.2,3380.1,0.73937]
[1642020595992,2.5519561,3380.2,3380.1,1.73937]
[1642020596391,2.5519561,3380.2,3380.1,0.73937]
[1642020596591,2.5519561,3380.2,3380.1,1.73937]
[1642020596791,2.2519561,3380.2,3380.1,0.73937]
[1642020596990,2.2519561,3380.2,3380.1,1.73937]
[1642020597994,2.2519561,3380.2,3380.1,0.73937]
[1642020598193,2.2519561,3380.2,3380.1,1.73937]
[1642020599436,2.2519561,3380.2,3380.1,0.73937]
[1642020599437,5.4580701,3380.2,3380.1,0.73937]
[1642020599638,2.5519561,3380.2,3380.0,0.00113685]
[1642020599843,2.83480881,3380.1,3380.0,0.00113685]
[1642020600042,2.78480881,3380.1,3380.0,0.00113685]
[1642020600242,2.8519561,3380.2,3380.0,0.00113685]
[1642020600447,2.8519561,3380.2,3380.0,2.7174434]
[1642020600448,2.2519561,3380.2,3380.0,2.7174434]
[1642020600643,2.2519561,3380.2,3380.0,0.74071685]
[1642020600943,1.49757358,3380.3,3380.1,3.93876468]
[1642020601144,1.49757358,3380.3,3380.1,3.82046468]
[1642020601344,1.49757358,3380.3,3380.1,2.70040847]
[1642020601543,1.49757358,3380.3,3380.2,1.0]
[1642020601743,1.49757358,3380.3,3380.2,1.8576]
[1642020601945,0.00113684,3380.4,3380.2,0.8576]
[1642020602144,0.00113684,3380.4,3380.2,1.7393]
[1642020602583,0.00113684,3380.4,3380.2,3.04042307]
[1642020603591,0.00113684,3380.4,3380.3,6.79084092]
[1642020603794,0.00113684,3380.4,3380.3,9.00881092]
[1642020603990,0.00113684,3380.4,3380.3,5.90881092]
[1642020604191,0.00113684,3380.4,3380.3,7.05048736]
[1642020604389,0.00113684,3380.4,3380.3,4.35964644]
[1642020605493,0.00113684,3380.4,3380.3,8.58511783]
[1642020606173,0.00113684,3380.4,3380.3,8.64391115]
[1642020606363,1.49757358,3380.9,3380.4,4.1]
[1642020606560,1.79757358,3380.9,3380.5,1.0]
[1642020606762,0.0022737,3380.8,3380.6,1.4046082]
[1642020607161,0.00170527,3380.7,3380.6,2.4046082]
[1642020607364,0.50946977,3380.7,3380.6,2.4046082]
[1642020608266,0.50946977,3380.7,3380.6,2.5229082]
[1642020609170,1.49757358,3381.1,3381.0,0.73919]
[1642020609571,1.49757358,3381.1,3381.0,1.73919]
[1642020609789,1.49757358,3381.2,3381.0,1.73919]
[1642020610799,0.00341054,3381.3,3381.1,0.6652363]
[1642020610800,1.50098412,3381.3,3381.1,0.6652363]
[1642020611002,1.50098412,3381.3,3381.2,0.73916]
[1642020611198,1.49757358,3381.3,3381.2,0.73916]
[1642020611399,1.49757358,3381.3,3381.2,1.73916]
[1642020611810,0.1183,3382.0,3381.2,1.73916]
[1642020611811,2.31370889,3383.1,3381.6,6.65]
[1642020611999,6.96,3383.6,3381.6,6.65]
[1642020612000,17.3,3383.8,3382.1,5.3260365]
[1642020612206,14.69,3385.1,3382.1,5.3260365]
[1642020612207,3.08288811,3383.5,3382.4,6.65]
[1642020612408,2.78952152,3384.5,3383.4,0.01222259]
[1642020612605,2.78952152,3384.5,3383.5,9.05043818]
[1642020612606,2.72009774,3384.5,3383.5,9.05043818]
[1642020612800,2.72009774,3384.5,3384.4,1.17783651]
[1642020612801,1.42129774,3384.5,3384.4,1.17783651]
[1642020613003,0.26063518,3384.5,3384.4,8.57228945]
[1642020613202,1.63219752,3385.0,3384.4,14.18628945]
[1642020613401,1.63219752,3385.0,3384.5,0.1181]
[1642020613660,0.00227369,3384.9,3384.6,0.425]
[1642020613863,30.52046289,3387.0,3384.8,11.964]
[1642020613864,5.48963292,3385.8,3384.8,11.964]
[1642020614062,0.2,3387.0,3385.8,0.3]
[1642020614262,0.2,3387.0,3385.9,0.5431]
[1642020614661,5.14148749,3387.2,3386.0,6.65]
[1642020614862,5.14148749,3387.2,3386.1,0.1181]
[1642020614863,5.10953722,3387.2,3386.1,0.1181]
[1642020615062,0.01250532,3387.1,3386.6,1.47598]
[1642020615261,7.55559701,3386.9,3386.7,0.425]
[1642020615463,7.55559701,3386.9,3386.7,1.16299]
[1642020615663,2.81080004,3386.8,3386.1,0.425]
[1642020615866,0.12890004,3386.8,3386.1,0.425]
[1642020616063,1.29367035,3386.6,3386.1,1.90129]
[1642020616266,1.29367035,3386.6,3386.1,1.47629]
[1642020616467,0.00909477,3386.5,3386.1,1.47629]
[1642020616867,0.00852635,3386.4,3386.1,1.47629]
[1642020617167,0.00795793,3386.3,3385.9,1.22693382]
[1642020617394,0.00795793,3386.3,3385.9,2.70331382]
[1642020617596,0.0073895,3386.2,3385.9,1.47638]
[1642020617799,0.0073895,3386.2,3385.6,1.0]
[1642020617995,0.00682108,3386.1,3385.6,1.0]
[1642020618396,1.7630872,3386.3,3385.6,1.0]
[1642020618397,0.00625266,3386.0,3385.6,1.73825]
[1642020618795,0.00568423,3385.9,3385.6,1.73825]
[1642020619196,0.1181,3387.0,3385.7,9.93268814]
[1642020619197,0.00511581,3385.8,3385.7,9.93268814]
[1642020619395,0.00511581,3385.8,3385.7,7.075]
[1642020619596,0.00511581,3385.8,3385.7,0.425]
[1642020619798,0.00511581,3385.8,3385.6,4.0]
[1642020619995,0.00511581,3385.8,3385.7,7.38825]
[1642020620195,0.425,3387.7,3385.7,7.38825]
[1642020620196,1.46748096,3386.2,3385.7,7.38825]
[1642020620396,1.39421565,3386.6,3385.7,7.38825]
[1642020620597,1.39421565,3386.6,3386.0,1.0]
[1642020621052,0.01250532,3387.1,3386.4,1.0]
[1642020621251,0.01250532,3387.1,3386.5,0.04628616]
[1642020621449,0.01250532,3387.1,3386.4,1.0]
[1642020621450,1.47792309,3387.0,3386.4,1.0]
[1642020621852,0.01136847,3386.9,3386.4,1.0]
[1642020622051,1.10914858,3386.9,3386.4,1.0]
[1642020622251,0.01080004,3386.8,3386.4,1.0]
[1642020622651,0.01023162,3386.7,3386.4,1.0]
[1642020623052,0.0096632,3386.6,3386.4,1.0]
[1642020623251,0.0096632,3386.6,3386.0,0.01241498]
[1642020623457,1.44988909,3386.2,3385.5,0.73825]
[1642020623854,0.00682108,3386.1,3385.5,0.73825]
[1642020624054,0.00682108,3386.1,3385.2,0.5431]
[1642020624254,2.51198909,3386.2,3385.2,0.5431]
[1642020624255,0.00625266,3386.0,3385.2,0.1181]
[1642020624455,0.00625266,3386.0,3385.2,0.85637]
[1642020624657,0.00568423,3385.9,3385.3,0.01960869]
[1642020625122,0.00511581,3385.8,3385.6,1.0]
[1642020625520,0.00454739,3385.7,3385.6,1.0]
[1642020626120,1.38658913,3385.7,3385.6,1.0]
[1642020626324,1.38658913,3385.7,3385.2,0.1181]
[1642020626521,1.12259558,3385.3,3385.1,0.1181]
[1642020626725,1.68658913,3385.7,3385.0,1.0]
[1642020626726,0.00397896,3385.6,3385.0,1.0]
[1642020626922,0.00170527,3385.2,3385.0,1.0]
[1642020627122,0.00341054,3385.5,3385.1,6.7681]
[1642020627321,1.38204174,3385.7,3385.2,0.00414495]
[1642020627520,1.38204174,3385.7,3385.2,0.1181]
[1642020627722,0.00397896,3385.6,3385.3,0.73829]
[1642020627922,0.00397896,3385.6,3385.4,0.7381933]
[1642020628123,1.38204174,3385.7,3385.4,0.66785165]
[1642020628124,0.00341054,3385.5,3385.4,0.66785165]
[1642020628739,0.00341054,3385.5,3384.7,2.21571685]
[1642020628740,0.00341054,3385.5,3384.7,0.00113685]
[1642020628944,1.1782519,3384.8,3384.7,0.00113685]
[1642020629144,1.1782519,3384.8,3384.5,0.00227369]
[1642020629542,1.15074928,3384.5,3384.4,0.00284212]
[1642020629744,0.00284212,3385.4,3384.6,0.73846]
[1642020630146,3.97059693,3386.0,3384.7,0.00113685]
[1642020630147,0.00227369,3385.3,3384.7,0.00113685]
[1642020630546,3.97059693,3386.0,3384.7,0.00113685]
[1642020630547,0.00170527,3385.2,3384.7,0.00113685]
[1642020630947,0.1181,3385.9,3384.6,3.0]
[1642020630948,1.47816377,3384.9,3384.6,3.0]
[1642020631147,0.00113685,3385.1,3384.7,0.00113685]
[1642020631347,0.75146594,3386.6,3384.9,0.03910257]
[1642020631348,0.00511581,3385.8,3384.9,0.03910257]
[1642020631552,0.00511581,3385.8,3385.0,0.1181]
[1642020631749,0.00511581,3385.8,3384.8,0.73842]
[1642020631750,0.00454739,3385.7,3384.9,0.1181]
[1642020632148,1.50755307,3385.6,3384.9,1.62493312]
[1642020632392,1.50755307,3385.6,3384.9,0.05684137]
[1642020632592,0.00341054,3385.5,3385.3,0.7383]
[1642020632994,0.00284212,3385.4,3385.3,0.7383]
[1642020633394,0.00284212,3385.4,3385.0,1.1181]
[1642020633692,0.00227369,3385.3,3385.0,1.0]
[1642020633893,0.00227369,3385.3,3385.1,2.2148389]
[1642020634095,1.65768383,3386.0,3385.1,2.2148389]
[1642020634096,0.00170527,3385.2,3385.1,2.2148389]
[1642020634294,1.42733397,3385.7,3385.4,0.73828]
[1642020634493,1.72733397,3385.7,3385.4,0.73828]
[1642020634693,0.00227369,3385.6,3385.1,2.2148389]
[1642020635096,1.42733397,3385.7,3385.0,1.0]
[1642020635097,0.00170527,3385.5,3385.0,1.0]
[1642020635500,1.42733397,3385.7,3385.2,0.73833]
[1642020635501,0.00113685,3385.4,3385.2,0.73833]
[1642020636145,0.1181,3386.5,3385.6,1.47634]
[1642020636349,5.68,3387.4,3385.9,0.04490852]
[1642020636350,3.03844476,3387.1,3385.9,0.04490852]
[1642020636543,0.1181,3387.4,3386.2,1.0]
[1642020636544,3.15654476,3387.4,3386.2,1.0]
[1642020636746,3.15654476,3387.4,3386.3,0.01541973]
[1642020636946,1.33742116,3386.9,3386.3,0.01541973]
[1642020637145,1.33742116,3386.9,3386.2,1.3]
[1642020637344,0.00795792,3386.8,3386.3,0.1181]
[1642020637845,0.0073895,3386.7,3386.3,0.1181]
[1642020638051,0.0073895,3386.7,3386.5,0.73805]
[1642020638248,2.7354424,3387.6,3386.6,6.7681]
[1642020638449,3.62209561,3387.6,3386.7,0.02261015]
[1642020638649,0.01193689,3387.5,3386.8,1.0]
[1642020638848,0.01193689,3387.5,3386.5,0.1179]
[1642020639049,1.51808253,3386.7,3386.5,1.0]
[1642020639450,0.00682108,3386.6,3386.5,1.0]
[1642020640095,0.00682108,3386.6,3386.3,1.1181]
[1642020640297,0.00682108,3386.6,3386.3,1.0]
[1642020640496,0.00625265,3386.5,3386.3,1.0]
[1642020640695,0.00625265,3386.5,3386.4,3.0]
[1642020640896,3.03844476,3387.5,3386.4,3.0]
[1642020641195,0.00682108,3386.6,3386.4,3.0]
[1642020641596,0.00625265,3386.5,3386.4,3.0]
[1642020641997,0.00625265,3386.5,3386.4,3.85615]
[1642020642396,0.00625265,3386.5,3386.4,3.1181]
[1642020642598,0.00625265,3386.5,3386.4,3.0]
[1642020642998,0.00625265,3386.5,3386.4,3.3]
[1642020643197,0.00625265,3386.5,3386.4,3.73805]
[1642020643398,0.00625265,3386.5,3386.4,3.85615]
[1642020643638,0.00625265,3386.5,3386.4,10.75615]
[1642020643837,0.00625265,3386.5,3386.4,10.81015]
[1642020644139,1.26047868,3386.5,3386.4,4.09205]
[1642020644539,1.26047868,3386.5,3386.4,5.09205]
[1642020644743,1.26047868,3386.5,3386.4,4.09205]
[1642020644943,1.26047868,3386.5,3386.4,3.0]
[1642020645546,1.26047868,3386.5,3386.4,3.73805]
[1642020647500,0.00625265,3386.5,3386.4,3.73805]
[1642020647700,0.00625265,3386.5,3386.4,7.13805]
[1642020648101,0.00625265,3386.5,3386.4,3.73805]
[1642020648702,1.20432419,3387.2,3386.5,6.65]
[1642020648905,2.7354424,3387.6,3387.0,0.73796]
[1642020649108,2.7354424,3387.6,3387.1,0.04894018]
[1642020649510,2.7354424,3387.6,3387.0,0.354]
[1642020649707,2.7354424,3387.6,3387.0,1.354]
[1642020649908,1.49670981,3387.3,3387.1,1.47577]
[1642020650112,1.0136335,3388.3,3387.3,2.25369855]
[1642020650312,1.0136335,3388.3,3388.1,0.01228877]
[1642020650513,0.1179,3389.8,3388.3,0.03685562]
[1642020650712,0.1179,3390.3,3388.5,0.03198192]
[1642020650910,0.01267025,3391.1,3388.7,0.75156704]
[1642020650911,0.01477901,3389.1,3388.7,0.75156704]
[1642020651168,0.88612156,3389.7,3388.8,0.354]
[1642020651169,0.01477901,3389.3,3388.8,0.354]
[1642020651360,0.01477901,3389.3,3388.8,0.00170527]
[1642020651560,0.01477901,3389.3,3388.9,0.00113684]
[1642020651759,0.13267901,3389.3,3388.7,3.04071845]
[1642020651961,0.01477901,3389.3,3388.8,0.73761]
[1642020652163,0.01477901,3389.3,3388.8,1.73931527]
[1642020652364,0.01477901,3389.3,3388.9,1.47615684]
[1642020652365,1.25643442,3389.2,3388.9,1.47615684]
[1642020653062,1.25643442,3389.2,3388.9,2.21378644]
[1642020653463,0.01477901,3389.3,3389.0,0.1179]
[1642020653664,0.01477901,3389.3,3389.1,0.02570822]
[1642020653865,0.01477901,3389.3,3389.2,6.7679]
[1642020654062,0.01222671,3390.3,3389.3,6.45]
[1642020654263,22.4187,3391.2,3389.7,0.7373656]
[1642020654264,0.1179,3390.5,3389.7,0.7373656]
[1642020654466,0.74341505,3391.5,3389.7,2.33092]
[1642020654467,1.3910613,3390.2,3389.7,2.33092]
[1642020654665,1.3910613,3390.2,3390.1,1.0]
[1642020655099,1.39731396,3390.2,3390.1,1.0]
[1642020655304,1.51521396,3390.2,3389.2,1.0]
[1642020655506,0.1179,3390.1,3389.0,1.47499]
[1642020655704,0.12358424,3390.1,3389.0,1.47499]
[1642020655906,0.00511582,3390.0,3389.0,1.47499]
[1642020656104,1.4292765,3389.1,3389.0,1.47499]
[1642020656302,1.12281149,3389.6,3389.0,1.47499]
[1642020656702,0.0022737,3389.5,3389.0,1.47499]
[1642020657104,0.00170527,3389.4,3389.0,1.47499]
[1642020657304,1.23531657,3389.3,3389.0,1.47499]
[1642020657503,0.00113685,3389.3,3389.1,0.02229917]
[1642020657902,0.00113685,3389.3,3389.0,2.9497976]
[1642020657903,0.00113685,3389.3,3389.2,6.7679]
[1642020658102,0.00113685,3389.3,3389.2,6.65]
[1642020658302,0.00113685,3389.3,3389.1,0.1179]
[1642020658546,2.81651025,3389.2,3389.0,1.47499]
[1642020659551,1.33897824,3389.2,3389.0,1.47499]
[1642020660152,1.33897824,3389.2,3388.9,0.00113684]
[1642020660353,0.1179,3389.1,3388.9,0.00113684]
[1642020660558,0.1179,3389.1,3388.9,3.00113684]
[1642020660753,1.63897824,3389.2,3388.9,3.00113684]
[1642020661351,1.41143254,3389.1,3388.9,3.00113684]
[1642020661756,0.1179,3389.0,3388.9,2.08653684]
[1642020663094,1.52933254,3389.1,3388.9,2.08653684]
[1642020663898,1.52933254,3389.1,3388.9,3.684e-05]
[1642020663899,7.004,3389.0,3388.9,3.684e-05]
[1642020664096,7.004,3389.0,3386.9,3.11837128]
[1642020664097,6.65,3388.9,3386.9,3.11837128]
[1642020664297,17.3,3388.8,3386.9,3.11837128]
[1642020664496,17.3,3388.6,3387.0,0.01080005]
[1642020664698,0.354,3388.5,3387.1,0.1179]
[1642020664900,0.354,3388.5,3387.0,0.01080005]
[1642020664901,18.03803,3388.4,3387.0,0.01080005]
[1642020665104,18.03803,3388.4,3387.2,0.0096632]
[1642020665105,1.53078244,3388.3,3387.2,0.0096632]
[1642020665301,1.33531973,3387.3,3387.2,0.0096632]
[1642020665502,2.88611282,3387.3,3387.2,0.0096632]
[1642020665702,2.88611282,3387.3,3387.1,0.01023162]
[1642020665903,2.88611282,3387.3,3387.2,0.1179]
[1642020666150,2.88611282,3387.3,3386.8,0.0119369]
[1642020666353,2.88611282,3387.3,3387.2,0.0096632]
[1642020666551,1.16865222,3388.3,3386.9,4.75]
[1642020666751,1.38758601,3387.2,3387.0,0.1179]
[1642020667152,1.49214424,3388.2,3387.1,0.01023162]
[1642020667352,1.49214424,3388.2,3387.2,0.1179]
[1642020667353,1.44214424,3388.2,3387.2,0.1179]
[1642020667754,1.44214424,3388.2,3387.3,0.00909478]
[1642020668153,1.47227977,3387.4,3387.3,0.00909478]
[1642020668352,1.47227977,3387.4,3387.1,0.74810132]
[1642020668555,1.47227977,3387.4,3387.2,0.0096632]
[1642020668954,1.47227977,3387.4,3387.1,0.01023162]
[1642020669154,1.47227977,3387.4,3387.2,0.0096632]
[1642020669355,1.19719335,3387.3,3387.2,0.0096632]
[1642020669821,1.19719335,3387.3,3386.9,0.01136847]
[1642020671320,1.19719335,3387.3,3387.0,0.01382619]
[1642020671517,1.19719335,3387.3,3387.1,0.1179]
[1642020671714,1.19719335,3387.3,3387.1,0.01023162]
[1642020671916,1.19719335,3387.3,3387.2,0.0096632]
[1642020672119,1.19719335,3387.3,3387.1,0.01023162]
[1642020672919,1.594,3388.1,3387.2,5.95]
[1642020673119,0.1179,3388.1,3387.2,6.68793]
[1642020673417,1.0,3389.0,3387.2,6.68793]
[1642020673418,0.1179,3388.6,3387.3,0.17706449]